fUSD/lending_fUSD_20250324
["ID","MTS","AMOUNT","RATE_DAILY","PERIOD"]
[356619970,1742845154257,-500.0,0.00046575,120]
[356619971,1742845154283,-500.0,0.00046575,120]
[356619972,1742845154307,-500.0,0.00046575,120]
[356619973,1742845154334,-500.0,0.00046575,120]
[356619974,1742845154360,-500.0,0.00046575,120]
[356619975,1742845154385,-500.0,0.00046575,120]
[356619976,1742845154412,-500.0,0.00046575,120]
[356619977,1742845154436,-2000.0,0.00046575,30]
[356619978,1742845154461,-500.0,0.00046575,120]
[356619979,1742845154486,-500.0,0.00046575,120]
[356619980,1742845154511,-500.0,0.00046575,120]
[356619981,1742845154536,-500.0,0.00046575,120]
[356619982,1742845154562,-500.0,0.00046575,120]
[356619983,1742845154587,-500.0,0.00046575,120]
[356619984,1742845154612,-500.0,0.00046575,120]
[356619985,1742845154637,-500.0,0.00046575,120]
[356619986,1742845154662,-1000.0,0.00046575,120]
[356619987,1742845154687,-500.0,0.00046575,120]
[356619988,1742845154713,-547.21050094,0.00046575,120]
[356619989,1742845154738,-514.68150239,0.00046575,120]
[356619990,1742845154763,-532.87707978,0.00046575,120]
[356619991,1742845154788,-500.0,0.00046575,120]
[356619992,1742845154815,-500.0,0.00046575,120]
[356619993,1742845154840,-500.0,0.00046575,120]
[356619994,1742845154867,-500.0,0.00046575,120]
[356619995,1742845154894,-500.0,0.00046575,120]
[356619996,1742845154919,-500.0,0.00046575,120]
[356619997,1742845154945,-500.0,0.00046575,120]
[356619998,1742845154972,-500.0,0.00046575,120]
[356619999,1742845155009,-500.0,0.00046575,120]
[356620000,1742845155039,-500.0,0.00046575,120]
[356620001,1742845155068,-526.47222047,0.00046575,120]
[356620002,1742845155096,-532.77786447,0.00046575,120]
[356620003,1742845155122,-509.92747312,0.00046575,120]
[356620004,1742845155149,-500.0,0.00046575,120]
[356620005,1742845155176,-500.0,0.00046575,120]
[356620006,1742845155202,-500.0,0.00046575,120]
[356620007,1742845155227,-500.0,0.00046575,120]
[356620008,1742845155252,-503.33257293,0.00046575,120]
[356620009,1742845155278,-500.0,0.00046575,120]
[356620010,1742845155303,-500.0,0.00046575,120]
[356620011,1742845155332,-500.0,0.00046575,120]
[356620012,1742845155356,-500.0,0.00046575,120]
[356620013,1742845155383,-515.01113201,0.00046575,120]
[356620014,1742845155408,-500.0,0.00046575,120]
[356620015,1742845155434,-525.25650718,0.00046575,120]
[356620016,1742845155459,-500.0,0.00046575,120]
[356620017,1742845155484,-750.0,0.00046575,120]
[356620018,1742845155509,-500.0,0.00046575,120]
[356620019,1742845155662,-538.29959203,0.00046575,120]
[356620020,1742845155687,-501.91779483,0.00046575,120]
[356620021,1742845155713,-500.0,0.00046575,120]
[356620022,1742845155740,-500.0,0.00046575,120]
[356620023,1742845155766,-500.0,0.00046575,120]
[356620024,1742845155791,-508.72047062,0.00046575,120]
[356620025,1742845155817,-500.0,0.00046575,120]
[356620026,1742845155841,-500.0,0.00046575,120]
[356620027,1742845155866,-529.26169948,0.00046575,120]
[356620028,1742845155891,-532.8004951,0.00046575,120]
[356620029,1742845155915,-514.64118421,0.00046575,120]
[356620030,1742845155940,-525.08125704,0.00046575,120]
[356620031,1742845155964,-500.0,0.00046575,120]
[356620032,1742845155996,-500.0,0.00046575,120]
[356620033,1742845156021,-537.62220629,0.00046575,120]
[356620034,1742845156046,-508.95349171,0.00046575,120]
[356620035,1742845156071,-500.0,0.00046575,120]
[356620036,1742845156095,-500.0,0.00046575,120]
[356620037,1742845156119,-500.0,0.00046575,120]
[356620038,1742845156143,-168.42697964,0.00046575,120]
[356620039,1742845156168,-500.0,0.00046575,120]
[356620040,1742845156192,-506.29878317,0.00046575,120]
[356620041,1742845156217,-170.02218078,0.00046575,120]
[356620042,1742845156242,-500.0,0.00046575,120]
[356620043,1742845156267,-512.64638711,0.00046575,120]
[356620044,1742845156292,-500.0,0.00046575,120]
[356620045,1742845156319,-500.0,0.00046575,120]
[356620046,1742845156348,-500.0,0.00046575,120]
[356620047,1742845156372,-500.0,0.00046575,120]
[356620048,1742845156400,-505.39372927,0.00046575,120]
[356620049,1742845156424,-500.0,0.00046575,120]
[356620050,1742845156449,-500.0,0.00046575,120]
[356620051,1742845156473,-500.0,0.00046575,120]
[356620052,1742845156498,-500.0,0.00046575,120]
[356620053,1742845156522,-500.0,0.00046575,120]
[356620054,1742845156547,-500.0,0.00046575,120]
[356620055,1742845156571,-549.53679572,0.00046575,120]
[356620056,1742845156596,-500.0,0.00046575,120]
[356620057,1742845156620,-512.83833808,0.00046575,120]
[356620058,1742845156645,-500.0,0.00046575,120]
[356620059,1742845156669,-500.0,0.00046575,120]
[356620060,1742845156694,-500.0,0.00046575,120]
[356620061,1742845156719,-500.0,0.00046575,120]
[356620062,1742845156744,-500.0,0.00046575,120]
[356620063,1742845156768,-503.42222007,0.00046575,120]
[356620064,1742845156792,-507.67006303,0.00046575,120]
[356620065,1742845156817,-500.0,0.00046575,120]
[356620066,1742845156842,-528.73160792,0.00046575,120]
[356620067,1742845156866,-500.0,0.00046575,120]
[356620068,1742845156892,-500.0,0.00046575,120]
[356620069,1742845156917,-500.0,0.00046575,120]
[356620070,1742845156942,-500.0,0.00046575,120]
[356620071,1742845156967,-500.0,0.00046575,120]
[356620072,1742845156993,-500.0,0.00046575,120]
[356620073,1742845157018,-500.0,0.00046575,120]
[356620074,1742845157043,-512.75885234,0.00046575,120]
[356620075,1742845157069,-500.0,0.00046575,120]
[356620076,1742845157188,-514.63128824,0.00046575,120]
[356620077,1742845157215,-500.0,0.00046575,120]
[356620078,1742845157240,-500.0,0.00046575,120]
[356620079,1742845157266,-500.0,0.00046575,120]
[356620080,1742845157290,-500.0,0.00046575,120]
[356620081,1742845157314,-509.34377497,0.00046575,120]
[356620082,1742845157341,-519.62701847,0.00046575,120]
[356620083,1742845157365,-500.0,0.00046575,120]
[356620084,1742845157390,-510.97370598,0.00046575,120]
[356620085,1742845157415,-500.0,0.00046575,120]
[356620086,1742845157439,-500.0,0.00046575,120]
[356620087,1742845157462,-500.0,0.00046575,120]
[356620088,1742845157486,-500.0,0.00046575,120]
[356620089,1742845157510,-502.64848331,0.00046575,120]
[356620090,1742845157535,-500.0,0.00046575,120]
[356620091,1742845157560,-500.0,0.00046575,120]
[356620092,1742845157585,-500.0,0.00046575,120]
[356620093,1742845157609,-500.0,0.00046575,120]
[356620094,1742845157633,-513.83301673,0.00046575,120]
[356620095,1742845157656,-500.0,0.00046575,120]
[356620096,1742845157680,-500.0,0.00046575,120]
[356620097,1742845157704,-500.0,0.00046575,120]
[356620098,1742845157728,-500.0,0.00046575,120]
[356620099,1742845157753,-532.36571199,0.00046575,120]
[356620100,1742845157776,-500.0,0.00046575,120]
[356620101,1742845157802,-500.0,0.00046575,120]
[356620102,1742845157827,-510.33501599,0.00046575,120]
[356620103,1742845157853,-500.0,0.00046575,120]
[356620104,1742845157878,-500.0,0.00046575,120]
[356620105,1742845157904,-500.0,0.00046575,120]
[356620106,1742845157929,-500.0,0.00046575,120]
[356620107,1742845157957,-500.0,0.00046575,120]
[356620108,1742845157991,-500.0,0.00046575,120]
[356620109,1742845158022,-584.76268948,0.00046575,120]
[356620110,1742845158051,-500.0,0.00046575,120]
[356620111,1742845158079,-507.12638296,0.00046575,120]
[356620112,1742845158106,-503.09806984,0.00046575,60]
[356620113,1742845158132,-500.0,0.00046575,120]
[356620114,1742845158159,-500.0,0.00046575,120]
[356620115,1742845158184,-500.0,0.00046575,120]
[356620116,1742845158211,-500.0,0.00046575,120]
[356620117,1742845158237,-509.67085202,0.00046575,120]
[356620118,1742845158263,-500.0,0.00046575,120]
[356620119,1742845158288,-500.0,0.00046575,120]
[356620120,1742845158315,-500.0,0.00046575,120]
[356620121,1742845158345,-515.07122306,0.00046575,120]
[356620122,1742845158373,-500.0,0.00046575,120]
[356620123,1742845158400,-500.0,0.00046575,120]
[356620124,1742845158428,-500.0,0.00046575,120]
[356620125,1742845158455,-500.0,0.00046575,120]
[356620126,1742845158482,-500.0,0.00046575,120]
[356620127,1742845158508,-531.80797395,0.00046575,120]
[356620128,1742845158535,-500.0,0.00046575,120]
[356620129,1742845158561,-505.70627405,0.00046575,120]
[356620130,1742845158588,-500.0,0.00046575,120]
[356620131,1742845158724,-500.0,0.00046575,120]
[356620132,1742845158753,-500.0,0.00046575,120]
[356620133,1742845158779,-500.0,0.00046575,120]
[356620134,1742845158804,-500.0,0.00046575,120]
[356620135,1742845158829,-500.0,0.00046575,120]
[356620136,1742845158855,-461.80283416,0.00046575,120]
[356620137,1742845158880,-500.0,0.00046575,120]
[356620138,1742845158905,-500.0,0.00046575,120]
[356620139,1742845158930,-505.98663205,0.00046575,120]
[356620140,1742845158955,-516.40621251,0.00046575,120]
[356620141,1742845158981,-500.0,0.00046575,120]
[356620142,1742845159006,-500.0,0.00046575,120]
[356620143,1742845159031,-509.28654895,0.00046575,120]
[356620144,1742845159056,-501.34661102,0.00046575,120]
[356620145,1742845159082,-500.0,0.00046575,120]
[356620146,1742845159107,-500.0,0.00046575,120]
[356620147,1742845159133,-500.0,0.00046575,120]
[356620148,1742845159158,-500.0,0.00046575,120]
[356620149,1742845159183,-500.0,0.00046575,120]
[356620150,1742845159209,-163.41126356,0.00046575,120]
[356620151,1742845159234,-500.0,0.00046575,120]
[356620152,1742845159259,-500.0,0.00046575,120]
[356620153,1742845159285,-500.0,0.00046575,120]
[356620154,1742845159310,-500.0,0.00046575,120]
[356620155,1742845159339,-500.0,0.00046575,120]
[356620156,1742845159365,-500.0,0.00046575,120]
[356620157,1742845159391,-500.0,0.00046575,120]
[356620158,1742845159417,-500.0,0.00046575,120]
[356620159,1742845159442,-500.0,0.00046575,120]
[356620160,1742845159466,-512.1569613,0.00046575,120]
[356620161,1742845159492,-500.0,0.00046575,120]
[356620162,1742845159517,-500.0,0.00046575,120]
[356620163,1742845159542,-510.3068957,0.00046575,120]
[356620164,1742845159568,-500.0,0.00046575,120]
[356620165,1742845159595,-500.0,0.00046575,120]
[356620166,1742845159623,-500.0,0.00046575,120]
[356620167,1742845159647,-500.0,0.00046575,120]
[356620168,1742845159672,-500.0,0.00046575,120]
[356620169,1742845159697,-500.0,0.00046575,120]
[356620170,1742845159722,-500.0,0.00046575,120]
[356620171,1742845159748,-500.0,0.00046575,120]
[356620172,1742845159773,-500.0,0.00046575,120]
[356620173,1742845159799,-500.0,0.00046575,120]
[356620174,1742845159824,-500.0,0.00046575,120]
[356620175,1742845159849,-500.0,0.00046575,120]
[356620176,1742845159875,-500.0,0.00046575,120]
[356620177,1742845159899,-500.0,0.00046575,120]
[356620178,1742845159925,-500.0,0.00046575,120]
[356620179,1742845159950,-500.0,0.00046575,120]
[356620180,1742845159976,-502.70854063,0.00046575,120]
[356620181,1742845160001,-500.0,0.00046575,120]
[356620182,1742845160026,-500.00088456,0.00046575,120]
[356620183,1742845160051,-500.0,0.00046575,120]
[356620184,1742845160156,-500.0,0.00046575,120]
[356620185,1742845160181,-500.0,0.00046575,120]
[356620186,1742845160206,-500.0,0.00046575,120]
[356620187,1742845160231,-500.0,0.00046575,120]
[356620188,1742845160256,-500.0,0.00046575,120]
[356620189,1742845160280,-622.98732125,0.00046575,120]
[356620190,1742845160304,-500.0,0.00046575,120]
[356620191,1742845160332,-500.0,0.00046575,120]
[356620192,1742845160357,-500.0,0.00046575,120]
[356620193,1742845160383,-500.0,0.00046575,120]
[356620194,1742845160407,-500.0,0.00046575,120]
[356620195,1742845160432,-500.0,0.00046575,120]
[356620196,1742845160457,-500.0,0.00046575,120]
[356620197,1742845160482,-500.0,0.00046575,120]
[356620198,1742845160508,-500.0,0.00046575,120]
[356620199,1742845160533,-6067.06,0.00046575,120]
[356620200,1742845160558,-514.01336404,0.00046575,120]
[356620201,1742845160582,-529.32371381,0.00046575,120]
[356620202,1742845160606,-500.0,0.00046575,120]
[356620203,1742845160630,-500.0,0.00046575,120]
[356620204,1742845160654,-500.0,0.00046575,120]
[356620205,1742845160679,-500.0,0.00046575,120]
[356620206,1742845160703,-500.0,0.00046575,120]
[356620207,1742845160728,-500.0,0.00046575,120]
[356620208,1742845160753,-509.01633139,0.00046575,120]
[356620209,1742845160777,-500.0,0.00046575,120]
[356620210,1742845160802,-500.0,0.00046575,120]
[356620211,1742845160828,-500.0,0.00046575,120]
[356620212,1742845160853,-508.66493745,0.00046575,120]
[356620213,1742845160878,-516.95162095,0.00046575,120]
[356620214,1742845160903,-500.0,0.00046575,120]
[356620215,1742845160927,-500.0,0.00046575,120]
[356620216,1742845160953,-500.0,0.00046575,120]
[356620217,1742845160980,-500.0,0.00046575,120]
[356620218,1742845161005,-500.0,0.00046575,120]
[356620219,1742845161030,-519.36762693,0.00046575,120]
[356620220,1742845161055,-500.0,0.00046575,120]
[356620221,1742845161079,-500.0,0.00046575,120]
[356620222,1742845161104,-500.0,0.00046575,120]
[356620223,1742845161129,-504.48706099,0.00046575,120]
[356620224,1742845161153,-189.05518816,0.00046575,120]
[356620225,1742845161176,-500.0,0.00046575,30]
[356620226,1742845161200,-500.0,0.00046575,120]
[356620227,1742845161224,-438.62527086,0.00046575,120]
[356620228,1742845161249,-504.52666605,0.00046575,120]
[356620229,1742845161273,-500.0,0.00046575,120]
[356620230,1742845161297,-500.0,0.00046575,120]
[356620231,1742845161321,-500.0,0.00046575,120]
[356620232,1742845161349,-500.0,0.00046575,120]
[356620233,1742845161373,-500.0,0.00046575,120]
[356620234,1742845161396,-500.0,0.00046575,120]
[356620235,1742845161421,-500.0,0.00046575,120]
[356620236,1742845161522,-500.0,0.00046575,120]
[356620237,1742845161546,-500.0,0.00046575,120]
[356620238,1742845161570,-500.0,0.00046575,120]
[356620239,1742845161594,-500.0,0.00046575,120]
[356620240,1742845161617,-508.2136817,0.00046575,120]
[356620241,1742845161641,-500.0,0.00046575,120]
[356620242,1742845161664,-500.0,0.00046575,120]
[356620243,1742845161688,-500.0,0.00046575,120]
[356620244,1742845161712,-997.01,0.00046575,120]
[356620245,1742845161736,-502.6159674,0.00046575,120]
[356620246,1742845161760,-500.0,0.00046575,120]
[356620247,1742845161785,-500.0,0.00046575,120]
[356620248,1742845161810,-500.0,0.00046575,120]
[356620249,1742845161835,-575.36,0.00046575,120]
[356620250,1742845161860,-502.1114503,0.00046575,120]
[356620251,1742845161884,-500.0,0.00046575,120]
[356620252,1742845161908,-500.0,0.00046575,120]
[356620253,1742845161933,-500.0,0.00046575,120]
[356620254,1742845161958,-500.0,0.00046575,120]
[356620255,1742845161983,-500.0,0.00046575,120]
[356620256,1742845162009,-504.20045537,0.00046575,120]
[356620257,1742845162035,-512.03890459,0.00046575,120]
[356620258,1742845162060,-500.0,0.00046575,120]
[356620259,1742845162085,-521.41089162,0.00046575,120]
[356620260,1742845162110,-500.0,0.00046575,100]
[356620261,1742845162135,-500.0,0.00046575,120]
[356620262,1742845162159,-500.0,0.00046575,120]
[356620263,1742845162184,-506.3685729,0.00046575,120]
[356620264,1742845162209,-500.0,0.00046575,120]
[356620265,1742845162235,-500.0,0.00046575,120]
[356620266,1742845162260,-509.27893101,0.00046575,120]
[356620267,1742845162285,-1500.0,0.00046575,120]
[356620268,1742845162309,-500.0,0.00046575,120]
[356620269,1742845162334,-500.0,0.00046575,120]
[356620270,1742845162359,-500.0,0.00046575,120]
[356620271,1742845162385,-500.0,0.00046575,120]
[356620272,1742845162411,-500.0,0.00046575,120]
[356620273,1742845162434,-500.0,0.00046575,120]
[356620274,1742845162459,-502.19335759,0.00046575,120]
[356620275,1742845162484,-500.0,0.00046575,120]
[356620276,1742845162509,-500.0,0.00046575,120]
[356620277,1742845162535,-500.0,0.00046575,120]
[356620278,1742845162559,-507.40835067,0.00046575,120]
[356620279,1742845162583,-500.0,0.00046575,120]
[356620280,1742845162607,-500.0,0.00046575,120]
[356620281,1742845162631,-500.0,0.00046575,120]
[356620282,1742845162655,-500.0,0.00046575,120]
[356620283,1742845162678,-1107.52,0.00046575,120]
[356620284,1742845162702,-500.0,0.00046575,120]
[356620285,1742845162801,-250.76550637,0.00046575,120]
[356620286,1742845162828,-500.0,0.00046575,120]
[356620287,1742845162853,-500.0,0.00046575,120]
[356620288,1742845162879,-500.0,0.00046575,120]
[356620289,1742845162904,-500.0,0.00046575,120]
[356620290,1742845162930,-500.0,0.00046575,120]
[356620291,1742845162957,-1102.47,0.00046575,120]
[356620292,1742845162983,-500.0,0.00046575,120]
[356620293,1742845163010,-506.26830845,0.00046575,120]
[356620294,1742845163038,-500.0,0.00046575,120]
[356620295,1742845163065,-500.0,0.00046575,120]
[356620296,1742845163094,-513.55341491,0.00046575,120]
[356620297,1742845163121,-500.0,0.00046575,120]
[356620298,1742845163149,-500.0,0.00046575,120]
[356620299,1742845163176,-500.0,0.00046575,120]
[356620300,1742845163203,-500.0,0.00046575,120]
[356620301,1742845163230,-504.72230877,0.00046575,120]
[356620302,1742845163257,-500.0,0.00046575,120]
[356620303,1742845163285,-513.717818,0.00046575,120]
[356620304,1742845163313,-500.13,0.00046575,120]
[356620305,1742845163340,-500.0,0.00046575,120]
[356620306,1742845163366,-500.0,0.00046575,120]
[356620307,1742845163390,-507.81680651,0.00046575,120]
[356620308,1742845163416,-500.0,0.00046575,120]
[356620309,1742845163441,-500.0,0.00046575,120]
[356620310,1742845163466,-520.07642356,0.00046575,120]
[356620311,1742845163492,-772.53,0.00046575,120]
[356620312,1742845163516,-500.0,0.00046575,120]
[356620313,1742845163541,-500.0,0.00046575,120]
[356620314,1742845163566,-500.0,0.00046575,120]
[356620315,1742845163591,-549.84108481,0.00046575,120]
[356620316,1742845163617,-500.0,0.00046575,120]
[356620317,1742845163642,-509.07036707,0.00046575,120]
[356620318,1742845163666,-540.31158684,0.00046575,120]
[356620319,1742845163691,-507.26060991,0.00046575,120]
[356620320,1742845163717,-500.0,0.00046575,120]
[356620321,1742845163744,-509.03241899,0.00046575,120]
[356620322,1742845163770,-514.88633678,0.00046575,120]
[356620323,1742845163796,-500.0,0.00046575,120]
[356620324,1742845163822,-500.0,0.00046575,120]
[356620325,1742845163849,-500.0,0.00046575,120]
[356620326,1742845163875,-500.0,0.00046575,120]
[356620327,1742845163902,-500.0,0.00046575,120]
[356620328,1742845163929,-569.52557059,0.00046575,120]
[356620329,1742845163956,-500.0,0.00046575,120]
[356620330,1742845163983,-500.0,0.00046575,120]
[356620331,1742845164010,-508.6603386,0.00046575,120]
[356620332,1742845164037,-500.0,0.00046575,120]
[356620333,1742845164140,-500.0,0.00046575,120]
[356620334,1742845164169,-505.50752281,0.00046575,120]
[356620335,1742845164194,-500.0,0.00046575,120]
[356620336,1742845164220,-500.0,0.00046575,120]
[356620337,1742845164246,-536.23934225,0.00046575,120]
[356620338,1742845164270,-506.93896261,0.00046575,120]
[356620339,1742845164295,-500.0,0.00046575,120]
[356620340,1742845164320,-500.0,0.00046575,120]
[356620341,1742845164349,-500.0,0.00046575,120]
[356620342,1742845164375,-500.0,0.00046575,120]
[356620343,1742845164401,-528.69379333,0.00046575,120]
[356620344,1742845164427,-500.0,0.00046575,120]
[356620345,1742845164452,-500.0,0.00046575,120]
[356620346,1742845164478,-537.39466033,0.00046575,120]
[356620347,1742845164504,-500.0,0.00046575,120]
[356620348,1742845164529,-506.07339676,0.00046575,120]
[356620349,1742845164554,-500.0,0.00046575,120]
[356620350,1742845164580,-500.0,0.00046575,120]
[356620351,1742845164604,-500.0,0.00046575,120]
[356620352,1742845164629,-500.0,0.00046575,120]
[356620353,1742845164654,-500.0,0.00046575,120]
[356620354,1742845164678,-544.72,0.00046575,120]
[356620355,1742845164703,-502.17398918,0.00046575,120]
[356620356,1742845164728,-539.78419368,0.00046575,120]
[356620357,1742845164753,-500.0,0.00046575,120]
[356620358,1742845164779,-500.0,0.00046575,120]
[356620359,1742845164805,-500.0,0.00046575,120]
[356620360,1742845164830,-500.0,0.00046575,120]
[356620361,1742845164854,-500.0,0.00046575,120]
[356620362,1742845164880,-500.0,0.00046575,120]
[356620363,1742845164904,-620.22535091,0.00046575,120]
[356620364,1742845164928,-507.82746439,0.00046575,120]
[356620365,1742845164952,-500.0,0.00046575,120]
[356620366,1742845164976,-500.0,0.00046575,120]
[356620367,1742845165001,-511.36058048,0.00046575,120]
[356620368,1742845165025,-501.34597317,0.00046575,120]
[356620369,1742845165049,-500.0,0.00046575,120]
[356620370,1742845165074,-503.19549651,0.00046575,120]
[356620371,1742845165099,-339.51982583,0.00046575,120]
[356620372,1742845165123,-500.0,0.00046575,120]
[356620373,1742845165148,-500.0,0.00046575,120]
[356620374,1742845165173,-503.1077567,0.00046575,120]
[356620375,1742845165198,-576.94271642,0.00046575,120]
[356620376,1742845165222,-500.0,0.00046575,120]
[356620377,1742845165248,-8544.66,0.00046575,120]
[356620378,1742845165273,-500.0,0.00046575,120]
[356620379,1742845165298,-509.24332156,0.00046575,120]
[356620380,1742845165401,-500.0,0.00046575,120]
[356620381,1742845165427,-543.66861442,0.00046575,120]
[356620382,1742845165452,-521.19062626,0.00046575,120]
[356620383,1742845165477,-380.39702283,0.00046575,120]
[356620384,1742845165504,-500.0,0.00046575,120]
[356620385,1742845165529,-500.0,0.00046575,120]
[356620386,1742845165554,-500.0,0.00046575,120]
[356620387,1742845165578,-500.0,0.00046575,30]
[356620388,1742845165603,-500.0,0.00046575,120]
[356620389,1742845165628,-509.94748849,0.00046575,120]
[356620390,1742845165654,-500.0,0.00046575,120]
[356620391,1742845165680,-500.0,0.00046575,120]
[356620392,1742845165705,-537.71843953,0.00046575,120]
[356620393,1742845165730,-500.0,0.00046575,120]
[356620394,1742845165756,-500.0,0.00046575,120]
[356620395,1742845165781,-500.0,0.00046575,120]
[356620396,1742845165807,-500.0,0.00046575,120]
[356620397,1742845165833,-546.36603121,0.00046575,120]
[356620398,1742845165859,-500.0,0.00046575,120]
[356620399,1742845165885,-500.0,0.00046575,120]
[356620400,1742845165910,-551.93224299,0.00046575,120]
[356620401,1742845165936,-500.0,0.00046575,120]
[356620402,1742845165962,-500.0,0.00046575,120]
[356620403,1742845165990,-513.36364022,0.00046575,120]
[356620404,1742845166015,-500.0,0.00046575,120]
[356620405,1742845166040,-557.63043973,0.00046575,120]
[356620406,1742845166065,-500.0,0.00046575,120]
[356620407,1742845166090,-500.0,0.00046575,120]
[356620408,1742845166115,-533.50316822,0.00046575,120]
[356620409,1742845166140,-500.0,0.00046575,120]
[356620410,1742845166164,-500.0,0.00046575,120]
[356620411,1742845166189,-500.0,0.00046575,120]
[356620412,1742845166213,-500.0,0.00046575,120]
[356620413,1742845166239,-500.0,0.00046575,120]
[356620414,1742845166263,-516.17591658,0.00046575,120]
[356620415,1742845166287,-534.86429347,0.00046575,120]
[356620416,1742845166312,-500.0,0.00046575,120]
[356620417,1742845166340,-509.33472472,0.00046575,120]
[356620418,1742845166364,-500.0,0.00046575,120]
[356620419,1742845166390,-500.0,0.00046575,120]
[356620420,1742845166415,-500.0,0.00046575,120]
[356620421,1742845166440,-500.0,0.00046575,120]
[356620422,1742845166465,-500.0,0.00046575,120]
[356620423,1742845166489,-505.06307251,0.00046575,120]
[356620424,1742845166514,-500.0,0.00046575,120]
[356620425,1742845166612,-500.0,0.00046575,120]
[356620426,1742845166637,-581.97340301,0.00046575,120]
[356620427,1742845166661,-500.0,0.00046575,120]
[356620428,1742845166686,-500.0,0.00046575,120]
[356620429,1742845166711,-502.15834532,0.00046575,120]
[356620430,1742845166736,-517.9791722,0.00046575,120]
[356620431,1742845166762,-500.0,0.00046575,120]
[356620432,1742845166786,-543.71,0.00046575,120]
[356620433,1742845166812,-500.0,0.00046575,120]
[356620434,1742845166838,-500.0,0.00046575,120]
[356620435,1742845166863,-507.57937976,0.00046575,120]
[356620436,1742845166888,-526.33046183,0.00046575,120]
[356620437,1742845166914,-500.0,0.00046575,120]
[356620438,1742845166941,-539.4971663,0.00046575,120]
[356620439,1742845166966,-500.0,0.00046575,30]
[356620440,1742845166993,-500.0,0.00046575,120]
[356620441,1742845167020,-500.0,0.00046575,120]
[356620442,1742845167045,-530.951334,0.00046575,120]
[356620443,1742845167070,-500.0,0.00046575,120]
[356620444,1742845167095,-504.43090987,0.00046575,120]
[356620445,1742845167121,-513.98230302,0.00046575,120]
[356620446,1742845167147,-515.46316695,0.00046575,120]
[356620447,1742845167172,-5519.53,0.00046575,120]
[356620448,1742845167200,-5519.53,0.00046575,120]
[356620449,1742845167226,-511.379759,0.00046575,120]
[356620450,1742845167253,-5519.53,0.00046575,120]
[356620451,1742845167278,-500.0,0.00046575,120]
[356620452,1742845167303,-5519.53,0.00046575,120]
[356620453,1742845167331,-500.0,0.00046575,120]
[356620454,1742845167357,-500.74592921,0.00046575,120]
[356620455,1742845167383,-5519.53,0.00046575,120]
[356620456,1742845167409,-5519.53,0.00046575,120]
[356620457,1742845167435,-5519.53,0.00046575,120]
[356620458,1742845167460,-500.0,0.00046575,120]
[356620459,1742845167486,-5519.53,0.00046575,120]
[356620460,1742845167511,-5519.53,0.00046575,120]
[356620461,1742845167537,-5519.53,0.00046575,120]
[356620462,1742845167563,-5519.53,0.00046575,120]
[356620463,1742845167587,-511.72511143,0.00046575,120]
[356620464,1742845167613,-5519.53,0.00046575,120]
[356620465,1742845167639,-5519.53,0.00046575,120]
[356620466,1742845167662,-500.0,0.00046575,120]
[356620467,1742845167687,-5519.53,0.00046575,120]
[356620468,1742845167788,-498.80828332,0.00046575,120]
[356620469,1742845167818,-500.0,0.00046575,120]